fUSD/lending_fUSD_20241108
["ID","MTS","AMOUNT","RATE_DAILY","PERIOD"]
[341653566,1731065375465,-159.4,0.00023672,2]
[341653567,1731065375488,-159.4,0.0002369,2]
[341653568,1731065375512,-159.4,0.00023708,2]
[341653569,1731065375534,-159.4,0.00023726,2]
[341653570,1731065375558,-159.4,0.00023744,2]
[341653571,1731065375579,-524.75,0.00023749,2]
[341653572,1731065375602,-159.4,0.00023763,2]
[341653573,1731065375625,-159.4,0.00023781,2]
[341653574,1731065375648,-159.4,0.00023799,2]
[341653575,1731065375671,-6221.63,0.00023813,2]
[341653576,1731065375693,-159.4,0.00023817,2]
[341653577,1731065375718,-159.4,0.00023835,2]
[341653578,1731065375742,-159.4,0.00023853,2]
[341653579,1731065375764,-226.61,0.00023862,2]
[341653580,1731065375787,-159.4,0.00023872,2]
[341653581,1731065375809,-4166.24,0.0002391,2]
[341653582,1731065375835,-31504.62684218,0.00023922,2]
[341653583,1731065375855,-9181.6261515,0.00023999,2]
[341653584,1731065375874,-972.60971691,0.00024,2]
[341653585,1731065375896,-500.0,0.00024009,2]
[341653586,1731065375919,-439.74191091,0.00024009,2]
[341653587,1731065375942,-500.0,0.00024009,2]
[341653588,1731065375965,-500.0,0.00024009,2]
[341653589,1731065375989,-500.0,0.00024009,2]
[341653590,1731065376012,-236.56051772,0.00024009,2]
[341653591,1731065376032,-56581.02408973,0.0002401,2]
[341653592,1731065376053,-1051.87331594,0.0002404,2]
[341653593,1731065376077,-449.26,0.00024153,2]
[341653594,1731065376100,-6221.63,0.00024167,2]
[341653595,1731065376122,-382.67114929,0.00024359,2]
[341653596,1731065376145,-757.0,0.000244,2]
[341653597,1731065376166,-2941.831032,0.0002445,2]
[341653598,1731065376190,-6221.63,0.00024521,2]
[341653599,1731065376212,-382.67114929,0.00024595,2]
[341653600,1731065376235,-4606.34645196,0.0002465,2]
[341653601,1731065376256,-26620.60510726,0.00024749,2]
[341653602,1731065376277,-2826.0,0.000248,2]
[341653603,1731065376938,500.0,0.00046,30]
[341653604,1731065377031,500.0,0.00046016,120]
[341653605,1731065377087,500.0,0.000461,120]
[341653606,1731065377135,1708.75,0.00041078,30]
[341653607,1731065377177,500.0,0.00046105,89]
[341653608,1731065377208,1708.75,0.00041351,30]
[341653609,1731065377274,1708.75,0.00041624,30]
[341653610,1731065377304,500.0,0.00046128,120]
[341653611,1731065377359,1708.75,0.00041898,30]
[341653612,1731065377476,1708.75,0.00042171,30]
[341653613,1731065377511,500.0,0.00046181,120]
[341653614,1731065377606,1708.75,0.00042444,30]
[341653615,1731065377680,1708.75,0.00042717,30]
[341653616,1731065377719,1708.75,0.0004299,30]
[341653617,1731065377764,1708.75,0.00043264,30]
[341653618,1731065377798,500.0,0.00041078,30]
[341653619,1731065378038,1708.75,0.00043537,30]
[341653620,1731065378083,500.0,0.00046105,89]
[341653621,1731065378120,500.0,0.000462,120]
[341653622,1731065378264,1708.75,0.0004381,30]
[341653623,1731065378318,500.0,0.00046128,120]
[341653624,1731065378376,500.0,0.00046218,31]
[341653625,1731065378637,500.0,0.00046181,120]
[341653626,1731065378750,1708.75,0.00041078,30]
[341653627,1731065378803,500.0,0.00046223,30]
[341653628,1731065378996,1708.75,0.00041078,30]
[341653629,1731065379186,500.0,0.000462,120]
[341653630,1731065379254,1708.75,0.00041351,30]
[341653631,1731065379627,500.0,0.00046218,31]
[341653632,1731065379724,1708.75,0.00041624,30]
[341653633,1731065379800,500.0,0.0004624,120]
[341653634,1731065380047,1708.75,0.00041898,30]
[341653635,1731065380084,500.0,0.00046223,30]
[341653636,1731065380494,500.0,0.0004624,120]
[341653637,1731065380608,1708.75,0.00042171,30]
[341653638,1731065380837,1708.75,0.00042444,30]
[341653639,1731065381095,1708.75,0.00042717,30]
[341653640,1731065381219,500.0,0.000463,120]
[341653641,1731065381335,1708.75,0.0004299,30]
[341653642,1731065381369,500.0,0.00042717,30]
[341653643,1731065381606,1708.75,0.00043264,30]
[341653644,1731065381646,500.0,0.00046352,120]
[341653645,1731065381764,1776.71,0.00024643,2]
[341653646,1731065381808,500.0,0.000463,120]
[341653647,1731065381860,1708.75,0.00043537,30]
[341653648,1731065382075,500.0,0.000464,120]
[341653649,1731065382113,1708.75,0.0004381,30]
[341653650,1731065382188,500.0,0.00046352,120]
[341653651,1731065382358,1708.75,0.00041078,30]
[341653652,1731065382444,3108.69950802,0.00042997,120]
[341653653,1731065382491,500.0,0.00046464,120]
[341653654,1731065382598,500.0,0.000464,120]
[341653655,1731065382791,3108.69950802,0.00044497,120]
[341653656,1731065382943,500.0,0.000465,120]
[341653657,1731065383123,500.0,0.00046464,120]
[341653658,1731065383164,3108.69950802,0.00045997,120]
[341653659,1731065383372,500.0,0.00046545,120]
[341653660,1731065383634,500.0,0.000465,120]
[341653661,1731065384156,500.0,0.00046545,120]
[341653662,1731065384616,500.0,0.00046562,120]
[341653663,1731065385775,500.0,0.00046575,120]
[341653664,1731065392082,2000.0,0.00043835,120]
[341653665,1731065392337,2000.0,0.00044383,120]
[341653666,1731065392590,2000.0,0.00044931,120]
[341653667,1731065392846,2000.0,0.00045479,120]
[341653668,1731065393144,2000.0,0.00046027,120]
[341653669,1731065393423,2000.0,0.00046575,120]
[341653670,1731065393887,150.0,0.00046575,120]
[341653671,1731065393999,150.0,0.00046475,120]
[341653672,1731065395061,150.0,0.00046475,120]
[341653676,1731065404201,150.0,0.00018123,2]
[341653677,1731065407094,13107.0,0.00046575,120]
[341653678,1731065407552,150.0,0.00046475,120]
[341653679,1731065408385,150.0,0.00046575,120]
[341653680,1731065412986,1665.38726239,0.00038,120]
[341653681,1731065422136,1665.38726239,0.0004,120]
[341653682,1731065430441,3330.77452479,0.00043,120]
[341653698,1731065431720,-441.21565105,0.000249,2]
[341653702,1731065431848,-818.0,0.000249,2]
[341653703,1731065431884,-1398.70731657,0.000249,2]
[341653704,1731065431915,-1948.42348429,0.000249,2]
[341653705,1731065431925,-177.62191204,0.000249,2]
[341653706,1731065431935,-597.30130506,0.000249,2]
[341653707,1731065431944,-410.38080607,0.000249,2]
[341653708,1731065431954,-43267.40590042,0.00025,2]
[341653709,1731065431966,-37062.36348615,0.00025,2]
[341653710,1731065432034,-83342.79064197,0.00025,2]
[341653711,1731065432068,-3538.57548688,0.00025,2]
[341653713,1731065432080,-13772.9464498,0.00025,2]
[341653735,1731065437899,-500.0,0.00024999,2]
[341653736,1731065437909,-373.41170004,0.00024999,2]
[341653737,1731065437919,-362.08139399,0.00024999,2]
[341653738,1731065438611,-137.91860601,0.00024999,2]
[341653739,1731065438620,-500.0,0.00024999,2]
[341653740,1731065438629,-243.78780837,0.00024999,2]
[341653741,1731065438638,-168.8279743,0.00024999,2]
[341653742,1731065438648,-161890.11971474,0.00025,2]
[341653743,1731065438657,-200.0,0.00025,2]
[341653744,1731065438667,-2000.0,0.00025,2]
[341653745,1731065438676,-200.0,0.00025,2]
[341653746,1731065438685,-550.0,0.00025,2]
[341653747,1731065438695,-200.0,0.00025,2]
[341653748,1731065438704,-13969.43734678,0.00025,2]
[341653749,1731065438713,-155.740924,0.00025,7]
[341653750,1731065438722,-151.0,0.00025,7]
[341653751,1731065438731,-151.0,0.00025,7]
[341653752,1731065438740,-151.0,0.00025,7]
[341653753,1731065438749,-7353.61951094,0.00025,2]
[341653754,1731065438761,-308.485947,0.00025,7]
[341653755,1731065438770,-5590.26329423,0.00025,2]
[341653756,1731065438779,-308.485947,0.00025,7]
[341653757,1731065438789,-5000.0,0.000251,10]
[341653758,1731065438798,-208.0,0.0002511,2]
[341653759,1731065438808,-4606.34645191,0.0002515,2]
[341653760,1731065438817,-410.380806,0.00025186,2]
[341653761,1731065438826,-382.67114929,0.00025206,2]
[341653762,1731065438835,-200.0,0.0002525,2]
[341653763,1731065438844,-2000.0,0.0002525,2]
[341653764,1731065438854,-200.0,0.0002525,2]
[341653765,1731065438863,-150.10304748,0.0002525,2]
[341653766,1731065438872,-280.0,0.000253,10]
[341653767,1731065438881,-449.26,0.00025304,2]
[341653768,1731065438890,-167.02,0.00025382,2]
[341653769,1731065438900,-4606.34645191,0.000254,2]
[341653770,1731065438909,-177.621912,0.000254,2]
[341653771,1731065438918,-410.380806,0.00025471,2]
[341653772,1731065438927,-1863.02257042,0.00025488,2]
[341653773,1731065438936,-10000.0,0.000255,2]
[341653774,1731065438945,-200.0,0.00025503,2]
[341653775,1731065438954,-1627.46719894,0.00025503,2]
[341653776,1731065438963,-200.0,0.00025503,2]
[341653777,1731065438972,-208.0,0.0002551,2]
[341653778,1731065438981,-150.0,0.00025546,2]
[341653779,1731065438990,-150.0,0.00025551,2]
[341653780,1731065439000,-150.0,0.00025552,2]
[341653781,1731065439009,-150.0,0.00025555,2]
[341653782,1731065439019,-150.0,0.00025555,2]
[341653783,1731065439028,-150.0,0.0002556,2]
[341653784,1731065439036,-150.0,0.0002556,2]
[341653785,1731065439046,-330.57230107,0.0002556,2]
[341653786,1731065439055,-324.19163057,0.00025573,2]
[341653787,1731065439064,-500.0,0.00025573,2]
[341653788,1731065439077,-154.75,0.00025578,2]
[341653789,1731065439086,-150.0,0.00025579,2]
[341653790,1731065439095,-150.0,0.00025579,2]
[341653791,1731065439104,-150.0,0.0002558,2]
[341653792,1731065439113,-150.0,0.00025587,2]
[341653793,1731065439122,-1500.0,0.00025588,2]
[341653794,1731065439131,-150.0,0.00025594,2]
[341653795,1731065439139,-150.0,0.000256,2]
[341653796,1731065439151,-2100.0,0.000256,9]
[341653797,1731065439160,-150.0,0.00025602,2]
[341653798,1731065439169,-150.0,0.00025603,2]
[341653799,1731065439178,-150.0,0.00025607,2]
[341653800,1731065439187,-150.0,0.00025609,2]
[341653801,1731065439196,-150.0,0.00025612,2]
[341653802,1731065439207,-150.0,0.00025613,2]
[341653803,1731065439218,-150.0,0.00025615,2]
[341653804,1731065439227,-150.0,0.00025616,2]
[341653805,1731065439236,-150.0,0.00025616,2]
[341653806,1731065439245,-150.0,0.0002562,2]
[341653807,1731065439255,-150.0,0.00025624,2]
[341653808,1731065439265,-185.03390397,0.00025635,2]
[341653809,1731065439275,-150.0,0.0002564,2]
[341653810,1731065439284,-150.0,0.00025642,2]
[341653811,1731065439293,-150.0,0.00025644,2]
[341653812,1731065439302,-150.0,0.00025649,2]
[341653813,1731065439311,-4606.34645191,0.0002565,2]
[341653814,1731065439321,-1500.0,0.00025654,2]
[341653815,1731065439330,-150.0,0.0002566,2]
[341653816,1731065439339,-150.0,0.00025665,2]
[341653817,1731065439348,-150.0,0.00025668,2]
[341653818,1731065439358,-150.0,0.0002567,2]
[341653819,1731065439367,-150.0,0.00025671,2]
[341653820,1731065439376,-150.0,0.00025672,2]
[341653821,1731065439385,-229.45446964,0.00025674,2]
[341653822,1731065439395,-150.0,0.00025678,2]
[341653823,1731065439406,-150.0,0.0002568,2]
[341653824,1731065439415,-150.0,0.00025681,2]
[341653825,1731065439425,-150.0,0.00025688,2]
[341653826,1731065439435,-150.0,0.0002569,2]
[341653827,1731065439444,-150.0,0.0002569,2]
[341653829,1731065439453,-150.0,0.00025691,2]
[341653830,1731065439462,-150.0,0.00025693,2]
[341653831,1731065439471,-150.0,0.00025693,2]
[341653832,1731065439480,-276.54484351,0.00025694,2]
[341653833,1731065439488,-150.0,0.00025694,2]
[341653834,1731065439498,-150.0,0.00025696,2]
[341653835,1731065439508,-151.0,0.00025698,7]
[341653837,1731065439517,-150.0,0.00025698,2]
[341653838,1731065439526,-4300.0,0.000257,9]
[341653839,1731065439536,-1000.0,0.000257,2]
[341653840,1731065439545,-150.0,0.00025701,2]
[341653841,1731065439554,-150.0,0.00025705,2]
[341653842,1731065439563,-150.0,0.00025708,2]
[341653843,1731065439572,-152.82772214,0.00025709,2]
[341653844,1731065439581,-150.0,0.00025713,2]
[341653845,1731065439591,-2000.0,0.00025715,5]
[341653846,1731065439600,-150.0,0.0002572,2]
[341653847,1731065439610,-150.0,0.00025722,2]
[341653848,1731065439619,-1500.0,0.00025727,2]
[341653851,1731065439628,-150.0,0.00025729,2]
[341653853,1731065439637,-150.0,0.00025729,2]
[341653856,1731065439647,-150.0,0.00025732,2]
[341653858,1731065439656,-247.7,0.00025735,2]
[341653859,1731065439666,-150.0,0.00025735,2]
[341653860,1731065439675,-150.0,0.00025738,2]
[341653861,1731065439685,-181.0963415,0.00025742,2]
[341653862,1731065439695,-150.0,0.00025747,2]
[341653863,1731065439704,-150.0,0.00025747,2]
[341653864,1731065439713,-150.0,0.0002575,2]
[341653865,1731065439723,-150.0,0.0002575,2]
[341653866,1731065439732,-150.0,0.00025754,2]
[341653867,1731065439741,-150.0,0.00025754,2]
[341653868,1731065439750,-410.380806,0.00025757,2]
[341653869,1731065439759,-200.0,0.00025758,2]
[341653870,1731065439770,-200.0,0.00025758,2]
[341653871,1731065439779,-150.0,0.00025759,2]
[341653872,1731065439789,-150.0,0.00025761,2]
[341653873,1731065439799,-150.0,0.00025767,2]
[341653874,1731065439808,-500.0,0.00025773,2]
[341653875,1731065439817,-525.758157,0.00025773,2]
[341653876,1731065439827,-500.0,0.00025773,2]
[341653877,1731065439837,-2306.4,0.00025775,2]
[341653878,1731065439847,-150.0,0.0002578,2]
[341653879,1731065439857,-587.0,0.00025781,2]
[341653880,1731065439867,-150.0,0.00025782,2]
[341653881,1731065439876,-150.0,0.00025784,2]
[341653882,1731065439886,-150.0,0.00025786,2]
[341653883,1731065439895,-150.0,0.0002579,2]
[341653884,1731065439904,-180.69,0.00025791,2]
[341653885,1731065439914,-150.0,0.00025791,2]
[341653886,1731065439923,-150.0,0.00025792,2]
[341653887,1731065439934,-150.0,0.00025793,2]
[341653888,1731065439944,-150.0,0.00025794,2]
[341653889,1731065439953,-150.0,0.00025796,2]
[341653890,1731065439963,-151.0,0.00025796,2]
[341653891,1731065439972,-5924.0,0.00025796,2]
[341653892,1731065439981,-287.809,0.00025796,2]
[341653893,1731065439992,-168.034,0.00025796,2]
[341653894,1731065440002,-13618.0,0.00025796,2]
[341653895,1731065440012,-150.0,0.00025798,2]
[341653896,1731065440021,-150.0,0.00025799,2]
[341653897,1731065440031,-150.0,0.00025799,2]
[341653899,1731065440040,-1588.8525499,0.000258,2]
[341653900,1731065440050,-151.0,0.000258,7]
[341653902,1731065440059,-151.0,0.000258,7]
[341653904,1731065440069,-151.0,0.000258,7]
[341653905,1731065440080,-151.0,0.000258,7]
[341653906,1731065440089,-898.088821,0.000258,7]
[341653907,1731065440100,-898.088821,0.000258,7]
[341653908,1731065440110,-1874.701715,0.000258,7]
[341653909,1731065440121,-1874.701715,0.000258,7]
[341653910,1731065440131,-152.134879,0.000258,7]
[341653911,1731065440140,-561.868256,0.000258,7]
[341653912,1731065440152,-151.0,0.000258,7]
[341653913,1731065440162,-151.0,0.000258,7]
[341653914,1731065440173,-524.217914,0.000258,7]
[341653915,1731065440182,-524.217914,0.000258,7]
[341653916,1731065440191,-151.0,0.000258,7]
[341653917,1731065440201,-151.0,0.000258,7]
[341653918,1731065440210,-151.0,0.000258,7]
[341653919,1731065440219,-151.0,0.000258,7]
[341653920,1731065440228,-151.0,0.000258,7]
[341653921,1731065440238,-151.0,0.000258,7]
[341653922,1731065440247,-152.311852,0.000258,7]
[341653923,1731065440256,-151.0,0.000258,7]
[341653924,1731065440265,-151.0,0.000258,7]
[341653925,1731065440274,-158.1798,0.000258,7]
[341653926,1731065440284,-151.0,0.000258,7]
[341653927,1731065440294,-151.0,0.000258,7]
[341653928,1731065440305,-221.864599,0.000258,7]
[341653929,1731065440314,-221.864599,0.000258,7]
[341653930,1731065440324,-151.0,0.000258,7]
[341653931,1731065440335,-151.0,0.000258,7]
[341653932,1731065440345,-6400.0,0.000258,9]
[341653933,1731065440356,-151.0,0.000258,7]
[341653934,1731065440367,-151.0,0.000258,7]
[341653935,1731065440378,-151.0,0.000258,7]
[341653936,1731065440388,-151.0,0.000258,7]
[341653937,1731065440398,-151.0,0.000258,7]
[341653938,1731065440407,-2294.334272,0.000258,7]
[341653939,1731065440418,-2294.334272,0.000258,7]
[341653940,1731065440427,-151.0,0.000258,7]
[341653941,1731065440436,-308.485947,0.000258,7]
[341653942,1731065440445,-308.485947,0.000258,7]
[341653943,1731065440456,-150.0,0.00025801,2]
[341653944,1731065440466,-150.0,0.00025807,2]
[341653945,1731065440476,-150.0,0.00025809,2]
[341653946,1731065440486,-152.05071458,0.00025809,2]
[341653947,1731065440496,-150.0,0.00025811,2]
[341653948,1731065440505,-1070.37044302,0.00025814,10]
[341653949,1731065440515,-150.0,0.00025818,2]
[341653950,1731065440524,-150.0,0.0002582,2]
[341653951,1731065440534,-510.34227035,0.00025823,2]
[341653952,1731065440543,-150.0,0.00025823,2]
[341653953,1731065440552,-67186.48523468,0.00025824,2]
[341653954,1731065440561,-2503.642,0.00025825,11]
[341653955,1731065440570,-165.273,0.00025825,11]
[341653956,1731065440579,-150.0,0.00025826,2]
[341653957,1731065440588,-4676.788288,0.00025828,2]
[341653958,1731065440597,-150.0,0.00025829,2]
[341653959,1731065440607,-67186.48523468,0.0002583,2]
[341653960,1731065440616,-4676.788288,0.00025834,2]
[341653961,1731065440625,-10752.83748941,0.00025834,2]
[341653962,1731065440634,-1229.89255576,0.00025836,2]
[341653963,1731065440643,-1863.02257042,0.00025841,2]
[341653964,1731065440653,-510.34227035,0.00025842,2]
[341653965,1731065440662,-1229.89255576,0.00025843,2]
[341653966,1731065440671,-157.79948,0.00025847,7]
[341653967,1731065440681,-151.0,0.00025847,7]
[341653968,1731065440691,-50064.42503549,0.00025847,2]
[341653969,1731065440700,-5295.40295472,0.00025847,2]
[341653970,1731065440710,-67186.48523468,0.0002585,2]
[341653971,1731065440719,-5295.40295472,0.0002585,2]
[341653972,1731065440728,-7015.18243184,0.0002585,2]
[341653973,1731065440738,-30431.42058371,0.00025851,2]
[341653974,1731065440747,-249464.5862095,0.00025852,2]
[341653975,1731065440756,-1229.89255576,0.00025852,2]
[341653976,1731065440766,-30431.42058371,0.00025852,2]
[341653977,1731065440775,-10752.83748941,0.00025853,2]
[341653978,1731065440787,-510.34227035,0.00025854,2]
[341653979,1731065440797,-5295.40295472,0.00025855,2]
[341653980,1731065440808,-200.0,0.00025855,2]
[341653981,1731065440818,-5295.40295472,0.00025856,2]
[341653982,1731065440828,-15886.20886417,0.00025857,2]
[341653983,1731065440841,-2459.78511153,0.00025858,2]
[341653984,1731065440853,-249464.5862095,0.00025859,2]
[341653985,1731065440862,-15886.20886417,0.0002586,2]
[341653986,1731065440872,-7015.18243184,0.00025861,2]
[341653987,1731065440883,-200.0,0.00025863,2]
[341653988,1731065440892,-1229.89255576,0.00025863,2]
[341653989,1731065440902,-30431.42058371,0.00025865,2]
[341653990,1731065440912,-1229.89255576,0.00025866,2]
[341653991,1731065440921,-1218.06125633,0.00025866,2]
[341653992,1731065440931,-500.0,0.00025873,2]
[341653993,1731065440940,-15886.20886417,0.00025874,2]
[341653994,1731065440949,-1218.06125633,0.00025877,2]
[341653995,1731065440959,-10752.83748941,0.00025877,2]
[341653996,1731065440968,-2459.78511153,0.00025879,2]
[341653997,1731065440977,-5295.40295472,0.00025879,2]
[341653998,1731065440986,-510.34227035,0.00025881,2]
[341653999,1731065440996,-200.0,0.00025881,2]
[341654000,1731065441005,-15886.20886417,0.00025882,2]
[341654001,1731065441016,-249464.5862095,0.00025882,2]
[341654002,1731065441026,-10752.83748941,0.00025885,2]
[341654003,1731065441036,-4676.788288,0.00025886,2]
[341654004,1731065441045,-1229.89255576,0.00025886,2]
[341654005,1731065441054,-67186.48523468,0.00025886,2]
[341654006,1731065441063,-4676.788288,0.00025886,2]
[341654007,1731065441076,-1218.06125633,0.00025887,2]
[341654008,1731065441086,-510.34227035,0.00025889,2]
[341654009,1731065441095,-2459.78511153,0.00025891,2]
[341654010,1731065441104,-249464.5862095,0.00025891,2]
[341654011,1731065441116,-5295.40295472,0.00025891,2]
[341654012,1731065441125,-4676.788288,0.00025892,2]
[341654013,1731065441134,-10752.83748941,0.00025892,2]
[341654014,1731065441144,-510.34227035,0.00025893,2]
[341654015,1731065441155,-10752.83748941,0.00025893,2]
[341654016,1731065441164,-150.0,0.00025895,2]
[341654017,1731065441173,-4676.788288,0.00025897,2]
[341654018,1731065441183,-200.0,0.00025897,2]
[341654019,1731065441195,-30431.42058371,0.00025897,2]
[341654020,1731065441204,-67186.48523468,0.00025897,2]
[341654021,1731065441213,-200.0,0.00025897,2]
[341654022,1731065441223,-152.188137,0.00025898,7]
[341654023,1731065441232,-220.0,0.00025899,2]
[341654024,1731065441243,-67186.48523468,0.000259,2]
[341654025,1731065441252,-200.0,0.000259,2]
[341654026,1731065441262,-200.0,0.000259,2]
[341654027,1731065441271,-208.0,0.000259,2]
[341654028,1731065441280,-4606.34645191,0.000259,2]
[341654029,1731065441289,-177.621912,0.000259,2]
[341654030,1731065441299,-8600.0,0.000259,9]
[341654031,1731065441308,-2116.51,0.000259,7]
[341654032,1731065441317,-150.0,0.00025927,2]
[341654033,1731065441327,-165.66,0.00025935,2]
[341654034,1731065441336,-170.26037077,0.0002599,2]
[341654035,1731065441345,-6467.1069629,0.00025992,2]
[341654036,1731065441354,-1538.94438815,0.00025997,2]
[341654037,1731065441364,-1199.82932017,0.00025999,10]
[341654038,1731065441373,-151.0,0.00025999,7]
[341654039,1731065441382,-152.464877,0.00025999,7]
[341654040,1731065441392,-151.893579,0.00025999,7]
[341654041,1731065441403,-151.0,0.00025999,7]
[341654042,1731065441412,-156.212849,0.00025999,7]
[341654043,1731065441422,-251.950648,0.00025999,7]
[341654044,1731065441432,-251.950648,0.00025999,7]
[341654045,1731065441442,-151.0,0.00025999,7]
[341654046,1731065441451,-151.0,0.00025999,7]
[341654047,1731065441461,-151.0,0.00025999,7]
[341654048,1731065441471,-151.0,0.00025999,7]
[341654049,1731065441480,-151.0,0.00025999,7]
[341654050,1731065441491,-167612.44283577,0.00026,2]
[341654051,1731065441499,-398.0,0.00026,9]
[341654052,1731065441509,-151.0,0.00026,7]
[341654053,1731065441518,-151.0,0.00026,7]
[341654054,1731065441529,-151.0,0.00026,7]
[341654055,1731065441538,-151.0,0.00026,7]
[341654056,1731065441547,-151.0,0.00026,7]
[341654057,1731065441557,-152.284553,0.00026,7]
[341654058,1731065441567,-151.0,0.00026,7]
[341654059,1731065441576,-151.0,0.00026,7]
[341654060,1731065441585,-151.0,0.00026,7]
[341654061,1731065441595,-151.0,0.00026,7]
[341654062,1731065441604,-151.617926,0.00026,7]
[341654063,1731065441614,-151.0,0.00026,7]
[341654064,1731065441623,-151.0,0.00026,7]
[341654065,1731065441632,-151.0,0.00026,7]
[341654066,1731065441641,-169.717802,0.00026,7]
[341654067,1731065441651,-151.0,0.00026,7]
[341654068,1731065441660,-151.0,0.00026,7]
[341654069,1731065441670,-151.0,0.00026,7]
[341654070,1731065441679,-151.0,0.00026,7]
[341654071,1731065441688,-224.019155,0.00026,7]
[341654072,1731065441697,-224.019155,0.00026,7]
[341654073,1731065441706,-151.0,0.00026,7]
[341654074,1731065441715,-151.0,0.00026,7]
[341654075,1731065441725,-151.0,0.00026,7]
[341654076,1731065441734,-153.559297,0.00026,7]
[341654077,1731065441919,-151.0,0.00026,7]
[341654078,1731065441928,-151.0,0.00026,7]
[341654079,1731065441937,-251.950648,0.00026,7]
[341654080,1731065441946,-151.0,0.00026,7]
[341654081,1731065441955,-251.950648,0.00026,7]
[341654082,1731065441964,-151.0,0.00026,7]
[341654083,1731065441973,-151.0,0.00026,7]
[341654084,1731065441982,-151.0,0.00026,7]
[341654085,1731065441992,-151.0,0.00026,7]
[341654086,1731065442001,-151.0,0.00026,7]
[341654087,1731065442011,-151.0,0.00026,7]
[341654088,1731065442020,-151.0,0.00026,7]
[341654089,1731065442029,-197.184888,0.00026,7]
[341654090,1731065442038,-151.0,0.00026,7]
[341654091,1731065442047,-151.0,0.00026,7]
[341654092,1731065442056,-151.0,0.00026,7]
[341654093,1731065442065,-151.0,0.00026,7]
[341654094,1731065442079,-151.0,0.00026,7]
[341654095,1731065442088,-151.0,0.00026,7]
[341654096,1731065442098,-151.0,0.00026,7]
[341654097,1731065442107,-898.088821,0.00026,7]
[341654098,1731065442118,-898.088821,0.00026,7]
[341654099,1731065442127,-1874.701715,0.00026,7]
[341654100,1731065442136,-151.0,0.00026,7]
[341654101,1731065442145,-1874.701715,0.00026,7]
[341654102,1731065442155,-292.27153,0.00026,7]
[341654103,1731065442164,-292.27153,0.00026,7]
[341654104,1731065442173,-151.0,0.00026,7]
[341654105,1731065442182,-292.27153,0.00026,7]
[341654106,1731065442192,-292.27153,0.00026,7]
[341654107,1731065442200,-151.945376,0.00026,7]
[341654108,1731065442210,-561.868256,0.00026,7]
[341654109,1731065442219,-151.0,0.00026,7]
[341654110,1731065442228,-151.0,0.00026,7]
[341654111,1731065442237,-151.0,0.00026,7]
[341654112,1731065442246,-151.0,0.00026,7]
[341654113,1731065442255,-524.217914,0.00026,7]
[341654114,1731065442269,-524.217914,0.00026,7]
[341654115,1731065442279,-151.0,0.00026,7]
[341654116,1731065442288,-151.0,0.00026,7]
[341654117,1731065442297,-151.0,0.00026,7]
[341654118,1731065442306,-151.0,0.00026,7]
[341654119,1731065442315,-151.0,0.00026,7]